bitfinex/quotes_SOLUSD_20250811
["timestamp","ask_amount","ask_price","bid_price","bid_amount"]
[1754915570910,1e-08,179.02,179.0,96.36390171]
[1754915571206,0.1,179.08,179.0,96.36390171]
[1754915571207,1e-08,179.07,179.05,25.10621557]
[1754915571417,1e-08,179.07,179.06,50.26274145]
[1754915571581,0.1,179.08,179.06,50.26274145]
[1754915571582,1e-08,179.08,179.07,25.10621557]
[1754915571896,1e-08,179.08,179.07,37.4052425]
[1754915572070,1e-08,179.09,179.08,27.4052425]
[1754915572274,0.03,179.11,179.08,27.4052425]
[1754915572275,0.69,179.17,179.13,15.10621557]
[1754915572471,0.69,179.2,179.17,15.10621557]
[1754915572689,12.29902693,179.21,179.15,26.0]
[1754915573007,140.0,179.16,179.15,15.10621557]
[1754915573357,140.69,179.16,179.15,15.10621557]
[1754915573606,140.69,179.16,179.15,75.36715709]
[1754915573607,140.0,179.16,179.15,75.36715709]
[1754915573780,140.0,179.16,179.15,69.7852425]
[1754915573978,140.0,179.16,179.15,75.36715709]
[1754915574169,140.0,179.16,179.15,69.7852425]
[1754915574675,140.69,179.16,179.15,57.48621557]
[1754915574881,140.0,179.16,179.15,69.7852425]
[1754915575100,140.0,179.16,179.15,75.36715709]
[1754915575279,140.03,179.16,179.15,75.36715709]
[1754915575475,140.03,179.16,179.15,32.98715709]
[1754915575800,140.03,179.16,179.15,101.38715709]
[1754915576381,140.03,179.16,179.15,58.98715709]
[1754915576585,140.03,179.16,179.15,101.34715709]
[1754915576983,140.03,179.16,179.15,46.68813016]
[1754915576984,140.72,179.16,179.15,46.68813016]
[1754915577187,140.72,179.16,179.15,41.10621557]
[1754915577390,140.72,179.16,179.03,16.83]
[1754915577391,6.30164134,179.16,179.09,15.10621557]
[1754915577600,12.98902693,179.15,179.11,15.10621557]
[1754915577914,12.98902693,179.14,179.12,42.4]
[1754915578213,5.61164134,179.16,179.14,15.10621557]
[1754915578214,0.03,179.16,179.14,15.10621557]
[1754915578499,5.61160303,179.16,179.06,5.58467458]
[1754915578720,5.61160303,179.16,179.1,12.29902693]
[1754915578721,0.69,179.15,179.1,12.29902693]
[1754915578896,0.69,179.15,179.12,15.10621557]
[1754915579075,13.01902693,179.16,179.14,15.10621557]
[1754915579395,0.03,179.16,179.15,42.48]
[1754915579906,6.30160303,179.16,179.11,15.10621557]
[1754915580110,0.69,179.15,179.12,42.46]
[1754915580405,0.69,179.15,179.0,13.96611092]
[1754915580406,140.0,179.12,178.97,13.96848971]
[1754915580605,140.0,179.12,178.98,5.58721644]
[1754915580606,12.29902693,179.05,178.98,5.58721644]
[1754915580806,12.29902693,179.03,178.97,6.26749278]
[1754915581007,5.58534405,179.04,178.98,42.52]
[1754915581389,0.69,179.05,179.01,12.29902693]
[1754915581592,0.69,179.08,179.05,15.10621557]
[1754915581803,0.69,179.08,179.04,12.29902693]
[1754915581804,0.69,179.08,179.06,42.52]
[1754915582009,19.54215522,179.1,179.06,42.52]
[1754915582010,12.98902693,179.07,179.06,42.52]
[1754915582898,0.69,179.07,179.06,42.52]
[1754915583110,0.69,179.1,179.06,42.52]
[1754915583288,0.69,179.1,178.96,57.034301]
[1754915583289,12.29902693,179.07,178.96,57.034301]
[1754915583612,26.0,179.1,178.96,57.034301]
[1754915583613,12.29902693,179.03,179.01,15.10621557]
[1754915583788,12.98902693,179.03,179.02,57.60621557]
[1754915584215,0.69,179.09,179.03,15.10621557]
[1754915584397,12.29902693,179.08,179.03,27.4052425]
[1754915584710,0.69,179.07,179.03,15.10621557]
[1754915584928,12.29902693,179.08,179.03,27.4052425]
[1754915585221,5.58477287,179.06,179.04,57.58621557]
[1754915585910,12.98902693,179.05,179.04,42.48]
[1754915586103,10.0,179.17,179.04,42.48]
[1754915586104,6.27433994,179.08,179.05,15.10621557]
[1754915586607,12.98902693,179.07,179.05,15.10621557]
[1754915586910,140.0,179.05,179.01,15.10621557]
[1754915587093,140.0,179.05,179.02,57.60621557]
[1754915587094,12.29902693,179.03,179.02,57.60621557]
[1754915587611,5.58534405,179.04,179.02,57.60621557]
[1754915588389,12.98902693,179.11,179.03,15.78621557]
[1754915588586,13.95694031,179.13,178.96,50.26]
[1754915588587,12.29902693,179.05,178.98,0.68]
[1754915588802,12.29902693,179.03,178.98,15.10621557]
[1754915589004,19.55198033,179.01,178.96,40.26]
[1754915589205,31.85100726,179.01,178.97,42.52]
[1754915589414,19.55198033,179.01,178.98,54.81902693]
[1754915589592,19.55198033,179.01,178.99,15.10621557]
[1754915589913,5.58628009,179.01,178.96,40.94]
[1754915590096,5.58628009,179.01,178.99,15.10621557]
[1754915590301,5.58565603,179.03,179.0,57.60621557]
[1754915590516,0.69,179.05,179.01,15.10621557]
[1754915590722,12.29902693,179.07,179.01,27.4052425]
[1754915590890,42.55,179.16,179.01,27.4052425]
[1754915590891,18.57317275,179.08,179.03,12.29902693]
[1754915591097,12.98902693,179.08,179.04,42.48]
[1754915591297,0.69,179.07,179.04,42.48]
[1754915591632,12.29902693,179.05,178.97,15.10621557]
[1754915591792,12.29902693,179.01,178.96,52.55902693]
[1754915592145,12.98902693,179.0,178.97,57.60621557]
[1754915592413,0.69,179.0,178.97,57.60621557]
[1754915592732,19.54434259,179.08,178.97,57.60621557]
[1754915592733,0.69,179.05,179.0,15.10621557]
[1754915592891,0.69,179.08,179.03,12.29902693]
[1754915593090,12.29902693,179.05,179.04,42.48]
[1754915593409,12.98902693,179.09,179.04,42.48]
[1754915593732,12.29902693,179.12,179.07,12.29902693]
[1754915593913,0.69,179.14,179.1,12.29902693]
[1754915594109,12.29902693,179.15,179.11,42.46]
[1754915594317,12.29902693,179.12,179.05,26.0]
[1754915594528,12.29902693,179.08,179.06,42.46]
[1754915594728,12.98902693,179.07,179.0,27.4052425]
[1754915594916,12.29902693,179.06,179.01,42.48]
[1754915595119,0.69,179.07,179.01,42.48]
[1754915595120,12.98902693,179.07,179.03,15.10621557]
[1754915595320,26.0,179.15,179.03,15.10621557]
[1754915595321,12.98902693,179.06,179.04,42.48]
[1754915595555,12.98902693,179.05,179.04,42.48]
[1754915595849,12.98902693,179.05,178.99,15.10621557]
[1754915596011,12.29902693,179.02,179.0,42.44]
[1754915596357,12.29902693,179.02,179.01,42.44]
[1754915596358,12.98902693,179.02,179.01,42.44]
[1754915596840,12.29902693,179.02,179.01,42.44]
[1754915597045,0.69,179.05,179.01,42.44]
[1754915597225,5.58565603,179.03,179.01,42.44]
[1754915597738,27.91580592,179.11,179.01,42.44]
[1754915597739,0.69,179.07,179.02,15.10621557]
[1754915597948,12.98902693,179.06,179.02,15.10621557]
[1754915598436,12.29902693,179.08,179.02,27.4052425]
[1754915598846,0.69,179.09,179.04,15.10621557]
[1754915599044,12.98902693,179.12,179.07,27.4052425]
[1754915599229,12.98902693,179.12,179.08,42.38]
[1754915599425,0.69,179.12,179.08,54.67902693]
[1754915599627,12.98902693,179.15,179.09,27.4052425]
[1754915599826,12.29902693,179.14,179.09,27.4052425]
[1754915600222,5.02380209,179.15,179.11,15.10621557]
[1754915600223,12.29902693,179.15,179.11,15.10621557]
[1754915600423,12.29902693,179.15,179.12,42.38]
[1754915600618,12.97902693,179.14,179.12,42.38]
[1754915600834,0.68,179.13,179.06,15.10621557]
[1754915601045,12.29902693,179.1,179.08,15.10621557]
[1754915601340,12.29902693,179.12,179.08,15.10621557]
[1754915601549,5.02407795,179.14,179.1,12.29902693]
[1754915601752,12.97902693,179.13,179.11,42.38]
[1754915602132,12.29902693,179.12,179.11,42.38]
[1754915602331,12.29902693,179.13,179.11,42.38]
[1754915602641,12.29902693,179.14,179.11,42.38]
[1754915602950,5.73369485,179.16,179.07,15.10621557]
[1754915602951,12.29902693,179.12,179.07,15.10621557]
[1754915603257,12.29902693,179.09,179.08,42.34]
[1754915603459,5.02520339,179.1,179.05,15.10621557]
[1754915603657,12.97902693,179.09,179.05,15.10621557]
[1754915603971,0.68,179.08,179.06,42.3]
[1754915604137,12.29902693,179.07,178.97,15.10621557]
[1754915604330,12.29902693,179.02,178.98,68.3]
[1754915604560,12.97902693,179.02,178.96,45.84778228]
[1754915604730,12.97902693,179.02,178.99,42.3]
[1754915604928,26.0,179.08,178.99,42.3]
[1754915604929,0.68,179.05,178.99,42.3]
[1754915605237,17.32618983,179.03,178.99,42.3]
[1754915605568,12.29902693,179.01,179.0,42.28]
[1754915605926,12.29902693,179.01,179.0,42.26]
[1754915606455,12.97902693,179.01,178.93,0.06]
[1754915606660,17.59488897,179.03,178.94,42.26]
[1754915606661,12.29902693,178.97,178.94,42.26]
[1754915606825,0.68,179.0,178.95,42.26]
[1754915607030,0.68,178.99,178.95,42.26]
[1754915607239,12.29902693,178.98,178.95,42.26]
[1754915607560,5.70840826,178.99,178.95,42.26]
[1754915607561,12.29902693,178.97,178.95,42.26]
[1754915607856,12.29902693,178.96,178.95,42.26]
[1754915608035,12.29902693,178.97,178.95,42.26]
[1754915608234,12.97902693,178.97,178.95,42.26]
[1754915608540,12.29902693,178.96,178.95,42.26]
[1754915608748,12.97902693,178.96,178.93,0.06]
[1754915609057,12.29902693,178.95,178.94,42.24]
[1754915609259,17.32836473,178.95,178.94,42.24]
[1754915609762,5.0293378,178.95,178.94,42.24]
[1754915609969,12.57053466,178.99,178.94,42.24]
[1754915609970,0.68,178.99,178.94,42.24]
[1754915610169,12.29902693,178.95,178.94,42.24]
[1754915610346,12.97902693,178.95,178.94,42.2]
[1754915610849,12.97902693,178.95,178.93,0.06]
[1754915611055,0.68,178.94,178.93,0.06]
[1754915611238,18.00864579,178.94,178.93,0.06]
[1754915611436,12.57110737,178.99,178.93,0.06]
[1754915611437,12.29902693,178.95,178.93,0.06]
[1754915612042,12.29902693,178.96,178.93,0.06]
[1754915612245,12.29902693,178.97,178.94,42.2]
[1754915612448,12.29902693,178.98,178.94,42.2]
[1754915612658,12.29902693,178.96,178.94,42.2]
[1754915612860,12.29902693,178.95,178.94,42.2]
[1754915613360,0.68,179.01,178.95,15.10621557]
[1754915613543,12.29902693,178.99,178.95,15.10621557]
[1754915613743,0.68,179.04,178.98,12.29902693]
[1754915613946,17.04064525,179.09,179.0,27.4052425]
[1754915614153,12.29902693,179.06,179.01,12.29902693]
[1754915614342,12.29902693,179.04,179.0,15.10621557]
[1754915614538,31.02568684,179.08,179.01,42.2]
[1754915614539,0.68,179.03,179.01,42.2]
[1754915614759,12.29902693,179.02,179.01,42.2]
[1754915614966,0.68,179.02,179.01,42.2]
[1754915615164,12.97902693,179.02,178.94,26.7]
[1754915615462,12.29902693,178.97,178.95,42.2]
[1754915615761,0.68,179.05,178.96,28.1052425]
[1754915615938,12.29902693,179.04,178.99,12.29902693]
[1754915616140,12.97902693,179.05,179.0,54.47902693]
[1754915616339,5.02624818,179.06,179.02,12.29902693]
[1754915616955,17.32505462,179.07,179.02,12.29902693]
[1754915617145,17.32505462,179.07,179.0,42.18]
[1754915617467,140.0,179.0,178.96,27.4052425]
[1754915617843,5.02709043,179.03,178.98,15.10621557]
[1754915618166,17.35589401,179.04,178.99,12.29902693]
[1754915618540,0.03,179.04,179.0,12.29902693]
[1754915618747,0.03,179.04,179.02,12.29902693]
[1754915618944,0.03,179.04,179.03,27.4052425]
[1754915619166,0.03,179.04,179.03,15.10621557]
[1754915619371,12.32902693,179.04,179.0,15.10621557]
[1754915619562,12.29902693,179.01,178.96,15.10621557]
[1754915619761,0.03,179.04,178.93,12.35902693]
[1754915619762,12.29902693,178.98,178.93,12.35902693]
[1754915619964,12.29902693,178.98,178.94,42.2]
[1754915619965,12.29902693,178.96,178.94,42.2]
[1754915620168,0.68,179.01,178.95,12.29902693]
[1754915620470,26.03,179.04,178.98,12.29902693]
[1754915620653,12.32902693,179.04,178.99,54.59902693]
[1754915620846,12.32902693,179.04,179.0,42.3]
[1754915621042,0.03,179.04,179.02,12.29902693]
[1754915621248,0.03,179.04,179.03,12.29902693]
[1754915621474,0.03,179.04,179.03,32.99089853]
[1754915621659,0.03,179.04,179.03,33.69089853]
[1754915621851,0.03,179.04,179.03,28.1052425]
[1754915622052,0.03,179.04,179.0,12.99902693]
[1754915622253,12.29902693,179.03,179.01,42.28]
[1754915622971,0.71,179.04,178.99,15.10621557]
[1754915623154,12.32902693,179.04,179.0,42.24]
[1754915623469,12.29902693,179.02,178.96,0.7]
[1754915623673,12.29902693,179.01,178.97,83.34621557]
[1754915623876,140.0,178.97,178.93,0.76]
[1754915624089,140.0,178.97,178.94,57.32621557]
[1754915624252,140.0,178.97,178.96,15.10621557]
[1754915624452,12.29902693,178.99,178.96,15.10621557]
[1754915624653,12.29902693,178.97,178.95,15.10621557]
[1754915624861,12.29902693,178.98,178.95,15.10621557]
[1754915625372,5.02793296,179.0,178.95,15.10621557]
[1754915625572,12.29902693,178.98,178.95,15.10621557]
[1754915625775,12.29902693,178.96,178.93,0.06]
[1754915625959,12.29902693,178.96,178.94,42.2]
[1754915626158,12.97902693,178.95,178.93,0.06]
[1754915626359,12.29902693,178.94,178.93,0.06]
[1754915626557,12.29902693,178.94,178.93,42.24]
[1754915627272,12.29902693,178.95,178.93,42.24]
[1754915627474,5.02877577,178.97,178.93,42.24]
[1754915627864,12.29902693,178.96,178.93,42.24]
[1754915628473,21.97136773,179.04,178.95,12.29902693]
[1754915628673,0.71,179.04,178.99,15.10621557]
[1754915628880,0.71,179.04,179.0,42.14]
[1754915629074,12.29902693,179.02,179.0,42.14]
[1754915629259,17.32611736,179.03,179.0,42.14]
[1754915629463,0.03,179.04,179.01,15.10621557]
[1754915630270,0.03,179.04,179.03,15.10621557]
[1754915630653,0.03,179.04,179.01,28.0852425]
[1754915631089,0.03,179.04,179.03,27.4052425]
[1754915631597,0.03,179.04,179.03,59.67089853]
[1754915632290,0.03,179.04,179.03,101.77089853]
[1754915632771,0.03,179.04,179.03,96.1852425]
[1754915633353,0.03,179.04,179.03,41.10621557]
[1754915633566,0.03,179.04,179.03,83.16621557]
[1754915633769,0.03,179.04,179.03,57.16621557]
[1754915634070,0.03,179.04,179.03,15.10621557]
[1754915634474,0.03,179.04,179.03,57.14621557]
[1754915634713,12.32902693,179.04,178.99,0.68]
[1754915634869,12.32902693,179.04,179.0,57.12621557]
[1754915635073,0.03,179.04,179.02,27.4052425]
[1754915635273,0.03,179.04,179.03,57.12621557]
[1754915635515,12.32902693,179.04,179.03,42.02]
[1754915635669,12.32902693,179.04,178.96,0.68]
[1754915635670,13.02902693,179.04,178.96,0.68]
[1754915635867,13.02902693,179.04,178.93,0.06]
[1754915635868,12.29902693,179.03,178.98,27.4052425]
[1754915636081,12.99902693,179.03,178.99,42.0]
[1754915636280,12.29902693,179.02,178.99,42.0]
[1754915636893,12.99902693,179.03,179.0,15.10621557]
[1754915637094,0.03,179.04,179.0,15.10621557]
[1754915637405,12.29902693,179.03,179.0,15.10621557]
[1754915637610,17.32622124,179.03,179.0,15.10621557]
[1754915638106,5.02719431,179.03,179.0,15.10621557]
[1754915638284,18.02622124,179.03,179.0,15.10621557]
[1754915638484,0.03,179.04,179.0,28.0852425]
[1754915638705,0.03,179.04,179.02,15.10621557]
[1754915639005,0.03,179.04,179.03,57.04621557]
[1754915639207,0.03,179.04,179.03,69.3452425]
[1754915639515,0.03,179.04,179.03,74.93089853]
[1754915640000,0.03,179.04,179.03,75.61089853]
[1754915640596,0.03,179.04,179.03,76.16946413]
[1754915640792,0.03,179.04,179.03,34.22946413]
[1754915641013,0.03,179.04,179.03,75.57089853]
[1754915641392,0.03,179.04,179.03,41.10621557]
[1754915641595,0.03,179.04,179.03,57.00621557]
[1754915641916,0.03,179.04,179.03,69.3052425]
[1754915642137,0.03,179.04,179.03,57.00621557]
[1754915642293,13.02902693,179.04,179.03,41.9]
[1754915642491,0.03,179.04,179.03,41.9]
[1754915643019,0.03,179.04,179.03,69.3052425]
[1754915643224,0.03,179.04,179.03,95.3052425]
[1754915643515,0.03,179.04,179.03,76.12946413]
[1754915644440,0.03,179.06,179.05,41.10621557]
[1754915644636,0.03,179.1,179.09,41.10621557]
[1754915644821,0.03,179.1,179.09,95.3252425]
[1754915645025,0.03,179.1,179.09,41.10621557]
[1754915645337,0.03,179.1,179.09,83.02621557]
[1754915645503,0.03,179.1,179.09,100.90902718]
[1754915646536,0.03,179.1,179.09,101.58902718]
[1754915646740,0.03,179.1,179.09,88.61000025]
[1754915646901,0.03,179.1,179.09,100.90902718]
[1754915647924,0.03,179.1,179.09,101.58902718]
[1754915648124,0.03,179.1,179.09,100.90902718]
[1754915648605,0.03,179.1,179.09,88.61000025]
[1754915648808,0.03,179.1,179.09,100.90902718]
[1754915649205,0.03,179.1,179.09,101.58902718]
[1754915649406,0.03,179.1,179.09,100.90902718]
[1754915651104,0.73,179.16,179.1,15.10621557]
[1754915651429,0.03,179.16,179.15,27.4052425]
[1754915651633,0.03,179.16,179.15,69.2452425]
[1754915651926,0.03,179.16,179.15,74.82715709]
[1754915652132,0.03,179.16,179.15,100.82715709]
[1754915652438,0.03,179.16,179.15,101.50715709]
[1754915652611,0.03,179.16,179.15,100.80715709]
[1754915652808,0.03,179.16,179.15,101.48715709]
[1754915653201,0.03,179.16,179.15,58.98715709]
[1754915653526,0.03,179.16,179.15,76.02534854]
[1754915653527,1e-08,179.16,179.15,76.02534854]
[1754915654098,1e-08,179.16,179.15,80.55632161]
[1754915654302,1e-08,179.16,179.15,76.02534854]
[1754915654516,1e-08,179.16,179.15,75.34534854]
[1754915654722,1e-08,179.16,179.15,76.02534854]
[1754915654939,0.03,179.19,179.18,41.10621557]
[1754915655137,1e-08,179.19,179.18,95.7833405]
[1754915655430,0.03,179.22,179.18,95.7833405]
[1754915655431,0.03,179.22,179.21,41.10621557]
[1754915655621,17.31777449,179.33,179.21,95.78324707]
[1754915655622,0.7,179.33,179.21,95.78324707]
[1754915655801,2.933951,179.36,179.32,12.29902693]
[1754915656006,0.7,179.35,179.34,15.10621557]
[1754915656213,0.7,179.35,179.34,41.84]
[1754915656430,12.99902693,179.35,179.31,15.10621557]
[1754915656615,0.7,179.34,179.32,41.82]
[1754915657130,0.7,179.34,179.27,0.55781781]
[1754915657131,12.99902693,179.33,179.26,26.0]
[1754915657357,0.7,179.32,179.27,69.2452425]
[1754915657648,12.99902693,179.31,179.27,41.84]
[1754915657809,42.64716957,179.38,179.16,0.68]
[1754915657810,12.29902693,179.28,179.16,0.68]
[1754915658011,12.29902693,179.24,179.19,12.29902693]
[1754915658215,5.02012933,179.28,179.23,12.29902693]
[1754915658427,12.99902693,179.27,179.25,15.10621557]
[1754915658640,12.29902693,179.27,179.26,41.82]
[1754915659139,12.99902693,179.27,179.25,15.10621557]
[1754915659343,12.99902693,179.27,179.22,12.29902693]
[1754915659344,5.02036035,179.27,179.26,41.8]
[1754915659638,17.31938728,179.27,179.26,41.82]
[1754915659933,18.01938728,179.27,179.26,41.82]
[1754915660315,18.01938728,179.27,179.25,41.8]
[1754915660512,13.01902693,179.26,179.23,41.8]
[1754915660711,12.29902693,179.24,179.23,41.8]
[1754915660927,13.01902693,179.24,179.23,41.8]
[1754915661241,13.01902693,179.24,179.22,41.78]
[1754915661242,5.02148077,179.23,179.22,41.78]
[1754915661546,0.72,179.23,179.22,41.78]
[1754915661749,13.01902693,179.23,179.22,41.84]
[1754915662117,12.29902693,179.24,179.22,41.84]
[1754915662441,5.02098541,179.25,179.22,0.06]
[1754915662442,0.72,179.23,179.22,0.06]
[1754915662628,0.72,179.23,179.22,41.88]
[1754915662825,13.01902693,179.23,179.22,41.88]
[1754915663129,13.01902693,179.25,179.22,41.88]
[1754915663515,0.72,179.27,179.23,27.4052425]
[1754915663713,12.29902693,179.28,179.23,27.4052425]
[1754915663914,0.72,179.31,179.27,27.4052425]
[1754915664222,18.03763522,179.34,179.29,15.10621557]
[1754915664426,17.31763522,179.34,179.3,41.78]
[1754915664646,12.29902693,179.31,179.3,41.78]
[1754915665046,13.01902693,179.31,179.3,41.78]
[1754915665346,18.03826735,179.31,179.3,41.78]
[1754915665541,30.5863684,179.31,179.27,41.78]
[1754915665840,12.29902693,179.28,179.22,41.16621557]
[1754915666019,12.29902693,179.24,179.23,41.78]
[1754915666221,0.72,179.27,179.23,41.78]
[1754915666222,12.29902693,179.25,179.23,41.78]
[1754915666549,13.01902693,179.24,179.23,41.78]
[1754915666849,0.72,179.28,179.23,56.88621557]
[1754915667022,12.29902693,179.26,179.23,56.88621557]
[1754915667344,17.32022755,179.24,179.23,41.78]
[1754915667539,18.04022755,179.24,179.22,0.06]
[1754915667735,18.04022755,179.24,179.2,0.06]
[1754915667736,0.72,179.23,179.2,0.06]
[1754915668046,12.29902693,179.21,179.2,0.06]
[1754915668222,13.01902693,179.21,179.2,0.06]
[1754915668423,0.72,179.21,179.2,0.06]
[1754915668817,13.01902693,179.21,179.2,0.06]
[1754915669018,12.29902693,179.21,179.2,0.06]
[1754915669260,5.74120062,179.24,179.2,0.06]
[1754915669544,12.29902693,179.22,179.21,41.7]
[1754915669928,12.29902693,179.24,179.22,15.10621557]
[1754915670246,12.29902693,179.25,179.22,15.10621557]
[1754915670449,5.02072072,179.26,179.2,0.06]
[1754915670450,12.29902693,179.23,179.2,0.06]
[1754915670664,12.29902693,179.22,179.21,41.7]
[1754915670821,12.29902693,179.23,179.21,41.7]
[1754915671225,0.72,179.24,179.21,41.7]
[1754915671424,12.29902693,179.24,179.21,41.7]
[1754915672724,12.29902693,179.26,179.22,15.10621557]
[1754915673230,5.74038513,179.27,179.22,15.10621557]
[1754915673434,150.71980032,179.29,179.22,27.4052425]
[1754915673745,12.29902693,179.27,179.22,27.4052425]
[1754915673929,146.42,179.28,179.22,27.4052425]
[1754915673930,157.99902693,179.28,179.24,15.10621557]
[1754915674266,12.29902693,179.29,179.25,41.64]
[1754915674431,5.01954455,179.3,179.25,41.64]
[1754915674626,12.29902693,179.28,179.25,41.64]
[1754915675330,0.72,179.31,179.26,15.10621557]
[1754915675530,12.29902693,179.27,179.26,15.10621557]
[1754915675754,13.01902693,179.27,179.25,41.64]
[1754915675950,0.72,179.27,179.26,41.6]
[1754915676151,12.29902693,179.27,179.26,41.6]
[1754915677559,13.01902693,179.27,179.26,41.6]
[1754915679153,30.59028815,179.27,179.2,0.06]
[1754915679351,12.29902693,179.21,179.2,0.06]
[1754915679557,0.72,179.26,179.2,56.68621557]
[1754915679876,12.29902693,179.21,179.2,41.58]
[1754915680050,13.01902693,179.21,179.2,0.06]
[1754915680581,12.29902693,179.21,179.2,0.06]
[1754915680750,0.72,179.24,179.2,0.06]
[1754915680950,17.32106811,179.21,179.2,41.54]
[1754915681156,17.32106811,179.21,179.2,0.06]
[1754915681157,18.04106811,179.21,179.2,0.06]
[1754915681477,18.04106811,179.21,179.17,0.06]
[1754915681478,140.0,179.2,179.17,41.54]
[1754915681774,12.29902693,179.18,179.17,0.06]
[1754915682148,13.01902693,179.18,179.17,0.06]
[1754915682553,13.01902693,179.18,179.15,0.06]
[1754915682778,12.29902693,179.16,179.11,41.46]
[1754915683075,12.29902693,179.16,179.07,15.10621557]
[1754915683076,5.02484506,179.11,179.1,41.46]
[1754915683283,12.29902693,179.11,179.1,41.46]
[1754915683783,5.02459555,179.12,179.1,41.46]
[1754915683784,12.29902693,179.12,179.1,41.46]
[1754915684073,5.02344273,179.16,179.11,28.0552425]
[1754915684273,17.32246966,179.16,179.11,28.0552425]
[1754915684469,12.29902693,179.13,179.11,15.10621557]
[1754915684974,5.74344273,179.16,179.1,41.46]
[1754915685151,5.74344273,179.16,179.11,15.10621557]
[1754915685481,5.02344273,179.16,179.11,15.10621557]
[1754915685645,12.29902693,179.14,179.11,15.75621557]
[1754915685850,5.02322348,179.17,179.11,15.75621557]
[1754915686046,5.02322348,179.17,179.11,15.10621557]
[1754915686481,12.29902693,179.13,179.11,15.10621557]
[1754915686651,17.58112937,179.17,179.1,41.46]
[1754915686975,5.02372313,179.15,179.1,41.46]
[1754915687301,12.29902693,179.12,179.1,42.11]
[1754915688167,12.29902693,179.14,179.11,15.75621557]
[1754915688582,12.29902693,179.12,179.1,41.46]
[1754915688783,0.72,179.14,179.1,41.46]
[1754915689115,17.32387199,179.11,179.1,41.46]
[1754915689288,12.29902693,179.11,179.1,41.46]
[1754915689617,12.29902693,179.13,179.11,15.10621557]
[1754915690284,0.72,179.17,179.11,15.10621557]
[1754915690481,12.29902693,179.13,179.11,15.10621557]
[1754915691094,5.02367903,179.16,179.11,15.10621557]
[1754915691293,0.69,179.2,179.13,15.10621557]
[1754915691502,12.29902693,179.16,179.14,41.42]
[1754915691695,12.29902693,179.17,179.14,41.42]
[1754915691902,5.71232142,179.2,179.14,41.42]
[1754915692205,12.29902693,179.18,179.15,15.10621557]
[1754915692512,0.69,179.22,179.15,28.1152425]
[1754915692815,12.29902693,179.2,179.15,28.1152425]
[1754915692998,12.29902693,179.2,179.16,0.71]
[1754915693203,12.29902693,179.22,179.18,15.10621557]
[1754915693721,5.71181079,179.22,179.18,15.10621557]
[1754915693888,12.29902693,179.2,179.18,15.10621557]
[1754915694087,0.03,179.25,179.18,15.10621557]
[1754915694386,12.29902693,179.22,179.18,15.81621557]
[1754915694707,12.29902693,179.23,179.18,15.81621557]
[1754915695011,12.29902693,179.19,179.18,15.81621557]
[1754915695219,12.29902693,179.2,179.18,15.81621557]
[1754915695418,5.02225042,179.21,179.18,15.81621557]
[1754915695789,12.29902693,179.2,179.18,15.81621557]
[1754915696324,5.02225042,179.21,179.18,0.71]
[1754915696496,5.02120062,179.24,179.18,0.71]
[1754915696695,0.72,179.25,179.18,0.71]
[1754915696696,5.74100894,179.25,179.19,41.34]
[1754915696909,12.29902693,179.22,179.19,41.34]
[1754915697428,12.29902693,179.23,179.2,15.10621557]
[1754915698232,12.29902693,179.22,179.2,15.10621557]
[1754915699202,12.29902693,179.21,179.19,41.34]
[1754915699415,0.72,179.25,179.19,41.34]
[1754915699597,12.29902693,179.23,179.19,41.34]
[1754915699803,0.72,179.25,179.19,46.92066609]
[1754915700019,12.29902693,179.23,179.19,46.92066609]
[1754915700498,12.29902693,179.23,179.2,15.10621557]
[1754915700698,0.72,179.25,179.2,15.10621557]
[1754915701032,0.72,179.25,179.23,15.10621557]
[1754915701328,0.72,179.25,179.24,41.26]
[1754915701538,12.32902693,179.25,179.24,41.26]